Cogmind - Beta 12 @@@ ROGUE MODE // 2023.03.30 @ 20:43:49 Player: Plexion Result: Destroyed by DAS Turret with DAS Cannon Performance ------------- Evolutions (0) 0 Regions Visited (3) 600 Robots Destroyed (9) 45 Value Destroyed (200) 200 Prototype IDs (23) 460 Alien Tech Used (0) 0 Bonus (15) 15 TOTAL SCORE: 1320 Bonus ------- Follower Combat Kills 21 Aligned with FarCom 300 Friendly Fire -306 Cogmind --------- Core Integrity 0/250 Matter 271/300 Energy 82/100 System Corruption 1% Temperature Warm (125) Movement Core (350) Ox6 Location -10/Exiles Parts ------- > --- POWER (1) -------- (None) > --- PROPULSION (2) --- (None) > --- UTILITY (2) ------ Large Storage Unit Core Shielding > --- WEAPON (2) ------- (None) > --- INVENTORY (15) --- Light Ion Engine Improved Ion Engine Light Treads Light Treads Targeting Computer Light Armor Plating Light Assault Rifle Light Assault Rifle Light Assault Rifle Heavy Assault Rifle Heavy Assault Rifle Peak State ------------ > --- POWER ------------ Makeshift Power Source > --- PROPULSION ------- Light Treads Wheel > --- UTILITY ---------- Large Storage Unit Light Armor Plating > --- WEAPON ----------- Longsword +1 > --- INVENTORY -------- Light Ion Engine Improved Ion Engine Light Treads Light Treads Light Treads Light Treads Targeting Computer Core Shielding Light Armor Plating Light Assault Rifle Light Assault Rifle Light Assault Rifle Heavy Assault Rifle Heavy Assault Rifle [Rating: 17] Favorites ----------- Power Makeshift Power Source Engine Makeshift Power Source Propulsion Light Treads Treads Light Treads Wheel Wheel Utility Large Storage Unit Storage Large Storage Unit Protection Light Armor Plating Weapon Light Assault Rifle Ballistic Gun Light Assault Rifle Slashing Weapon Longsword +1 Build | -11 -10 -10 -10 ------- Run | Jun Mat Min Exi Slots Evolved . | . . . . Power . | . . . . Propulsion . | . . . . Utility . | . . . . Weapon . | . . . . Parts Attached 18 | 7 2 4 5 Power 2 | 1 . 1 . Engine 2 | 1 . 1 . Core . | . . . . Reactor . | . . . . Propulsion 6 | 2 . 1 3 Treads 5 | 2 . 1 2 Leg . | . . . . Wheel 1 | . . . 1 Hover . | . . . . Flight . | . . . . Utility 5 | 1 2 1 1 Device . | . . . . Storage 3 | 1 2 . . Processor . | . . . . Hackware . | . . . . Protection 2 | . . 1 1 Artifact . | . . . . Weapon 5 | 3 . 1 1 Energy Gun . | . . . . Energy Cannon . | . . . . Ballistic Gun 4 | 3 . 1 . Ballistic Cannon . | . . . . Launcher . | . . . . Special Weapon . | . . . . Impact Weapon . | . . . . Slashing Weapon 1 | . . . 1 Piercing Weapon . | . . . . Special Melee Weapon . | . . . . Unidentified Prototypes . | . . . . Parts Lost 6 | . . . 6 Power 1 | . . . 1 Propulsion 4 | . . . 4 Utility 1 | . . . 1 Weapon . | . . . . Highest Loss Streak 6 | . . . 6 To Critical Strikes . | . . . . Average Slot Usage (%) 81 | . 85 86 72 Engine 13 | . 14 14 13 Treads 26 | . 28 28 21 Wheel 1 | . . . 6 Storage 14 | . 14 14 14 Protection 4 | . . 1 14 Ballistic Gun 19 | . 28 28 . Naked Turns . | . . . . Heaviest Build 31 | 11 26 31 30 Greatest Support 40 | 40 40 40 40 Greatest Overweight (x) 6 | . . . 6 Average Overweight (x) . | . . . 1 Largest Inventory Capacity 15 | 8 15 15 15 Average Capacity 14 | 6 10 15 15 Most Carried 15 | 2 4 13 15 Average Carried 7 | . 2 6 14 Final Capacity 15 | 8 15 15 15 Final Carried 13 | 2 4 13 11 Class Distribution -------------------- 100% | Mutant Dominant Class ---------------- Mutant | -10/Materials Mutant | -10/Mines Mutant | -10/Exiles Resources | -11 -10 -10 -10 ----------- Run | Jun Mat Min Exi Matter Collected 434 | 236 40 158 . Remotely . | . . . . Salvage Created 268 | . 40 228 . Parts 16 | . 5 11 . Haulers Intercepted . | . . . . Recyclers Shooed . | . . . . Parts Field Recycled . | . . . . Retrieved Matter . | . . . . Parts Self-Destructed . | . . . . Prevented . | . . . . Kills | -11 -10 -10 -10 ------- Run | Jun Mat Min Exi Combat Hostiles Destroyed 7 | . 3 4 . Guns 7 | . 3 4 . Classes Destroyed 4 | . 1 3 . Worker 1 | . . 1 . Tunneler 1 | . . 1 . Swarmer 3 | . 3 . . Grunt 4 | . . 4 . Best Kill Streak 3 | . 3 2 . Combat Bots Only 3 | . 3 2 . Max Kills in Single Turn 2 | . 1 2 . Gunslinging . | . . . . Exploded . | . . . . Melee . | . . . . Uniques/NPCs Destroyed . | . . . . Combat | -11 -10 -10 -10 -------- Run | Jun Mat Min Exi Damage Taken 1348 | . 52 344 952 Core 271 | . 10 52 209 Absorbed by Shields . | . . . . Redirected to Shielding 40 | . . . 40 Core Remaining (%) 100 | 100 . . . Volleys Fired 26 | . 4 22 . Largest 2 | . 2 2 . Hottest 40 | . 40 40 . Shots Fired 53 | . 8 45 . Gun 53 | . 8 45 . Cannon . | . . . . Launcher . | . . . . Special . | . . . . Kinetic 53 | . 8 45 . Thermal . | . . . . Explosive . | . . . . Electromagnetic . | . . . . Robot Hit Streak 9 | . 2 9 . Robot Miss Streak 3 | . 3 2 . Penetration Max . | . . . . Secondary Targets 1 | . . 1 . Max Gunslinging Chain 1 | . . 1 . Shots Hit Robots 46 | . 3 35 8 Core Hits 18 | . 3 14 1 Critical Kills . | . . . . Critical Parts Destroyed . | . . . . Critical Strikes . | . . . . Melee Attacks 8 | . . . 8 Impact . | . . . . Slashing 8 | . . . 8 Piercing . | . . . . Sneak Attacks 1 | . . . 1 Combat Hostiles . | . . . . Follow-up Attacks . | . . . . Damage Inflicted 812 | . 30 365 417 Guns 389 | . 30 359 . Cannons . | . . . . Explosions . | . . . . Melee 415 | . . . 415 Ramming 8 | . . 6 2 Kinetic 389 | . 30 359 . Thermal . | . . . . Explosive . | . . . . Electromagnetic . | . . . . Impact . | . . . . Slashing 415 | . . . 415 Piercing . | . . . . Highest Corruption 1 | . 1 1 1 Average Corruption 1 | . 1 1 1 Corruption Purged . | . . . . Corruption Blocked . | . . . . Effects 10 | . . 6 4 Message Errors 2 | . . 2 . Matter Fused 3 | . . 1 2 Heat Flow Errors 1 | . . . 1 Energy Discharges 3 | . . 2 1 Misfires 1 | . . 1 . Overload Shots . | . . . . Overflow Damage . | . . . . Projectiles . | . . . . Explosions . | . . . . Melee . | . . . . Knockbacks . | . . . . Impact . | . . . . Kinetic . | . . . . Secondary . | . . . . Self-Inflicted Damage . | . . . . Shots . | . . . . Rammed 3 | . . 2 1 Targets Rammed 3 | . . 2 1 Kicked . | . . . . Crushed . | . . . . Highest Temperature 175 | . . 29 175 Average Temperature 21 | . . 12 150 Received Heat Transfer 198 | . . 198 . Siege Activations . | . . . . Robots Corrupted . | . . . . Combat Hostiles . | . . . . Parts Fried . | . . . . Impact Corruptions . | . . . . Robots Melted . | . . . . Combat Hostiles . | . . . . Parts Melted . | . . . . Heat Transferred . | . . . . Parts Sabotaged . | . . . . Parts Stolen . | . . . . Parts Stripped . | . . . . Power Chain Reactions . | . . . . Missiles Intercepted . | . . . . Alert | -11 -10 -10 -10 ------- Run | Jun Mat Min Exi Peak Influence 158 | . 102 158 . Initial 39 | . . 39 . Average 52 | . 50 56 . Maximum Alert Level . | . . . . Low Security (%) 100 | 100 100 100 . Level 1 . | . . . . Level 2 . | . . . . Level 3 . | . . . . Level 4 . | . . . . Level 5 . | . . . . High Security . | . . . . Max Security . | . . . . Squads Dispatched 1 | . 1 . . Investigation 1 | . 1 . . Extermination . | . . . . Reinforcement . | . . . . Assault . | . . . . Garrison . | . . . . Intercept . | . . . . Searches Triggered . | . . . . Construction Impeded . | . . . . Haulers Reinforced . | . . . . Active Scanning Responses . | . . . . Cargo Convoy Interrupts . | . . . . Stealth | -11 -10 -10 -10 --------- Run | Jun Mat Min Exi Distress Signals . | . . . . Communications Jammed . | . . . . Distress Signals . | . . . . Times Spotted 26 | . 5 6 15 Peak Tracking Total 5 | . 5 2 5 Tactical Retreats 3 | . 1 . 2 Traps | -11 -10 -10 -10 ------- Run | Jun Mat Min Exi Traps Triggered 2 | . 2 . . Indirectly . | . . . . Trap Hack Attempts . | . . . . Triggered . | . . . . Disarmed . | . . . . Reprogrammed . | . . . . Reused . | . . . . Traps Extracted . | . . . . Installed . | . . . . Triggered . | . . . . Machines | -11 -10 -10 -10 ---------- Run | Jun Mat Min Exi Machines Disabled . | . . . . Max in Single Turn . | . . . . Machines Repaired . | . . . . Machines Sabotaged . | . . . . Overloaded Fab Kills . | . . . . Hacking | -11 -10 -10 -10 --------- Run | Jun Mat Min Exi Machines Accessed 4 | . 2 . 2 Terminals 2 | . 2 . . Fabricators . | . . . . Repair Stations . | . . . . Recycling Units . | . . . . Scanalyzers . | . . . . Garrison Access . | . . . . Total Hacks 9 | . 7 . 2 Successful 5 | . 3 . 2 Failed 3 | . 3 . . Catastrophic . | . . . . Database Lockouts 1 | . 1 . . Manual 8 | . 7 . 1 Terminals 7 | . 7 . . Fabricators . | . . . . Repair Stations . | . . . . Recycling Units . | . . . . Scanalyzers . | . . . . Garrison Access . | . . . . Terminal Hacks 4 | . 2 . 2 Record 1 | . . . 1 Robot Analysis 1 | . 1 . . Zone Layout 1 | . 1 . . EX-Prototype ID Bank 1 | . . . 1 Fabricator Hacks . | . . . . Repair Station Hacks . | . . . . Recycling Unit Hacks . | . . . . Scanalyzer . | . . . . Garrison Access Hacks . | . . . . Unauthorized Hacks 1 | . 1 . . Terminals 1 | . 1 . . Operators 1 | . 1 . . Fabricators . | . . . . Repair Stations . | . . . . Recycling Units . | . . . . Scanalyzers . | . . . . Garrison Access . | . . . . Data Cores Recovered . | . . . . Used . | . . . . Hacking Detections 1 | . 1 . . Full Trace Events . | . . . . Feedback Events . | . . . . Feedback Blocked . | . . . . Robot Schematics Acquired . | . . . . Robots Built . | . . . . Authchips . | . . . . Time . | . . . . Total Robot Build Rating . | . . . . Part Schematics Acquired . | . . . . Parts Built . | . . . . Authchips . | . . . . Time . | . . . . Total Part Build Rating . | . . . . Parts Repaired . | . . . . Time . | . . . . Parts Recycled . | . . . . Recycled Matter . | . . . . Retrieved Matter . | . . . . Retrieved Components . | . . . . Parts Scanalyzed . | . . . . Part Schematics Acquired . | . . . . Parts Damaged . | . . . . Bothacking | -11 -10 -10 -10 ------------ Run | Jun Mat Min Exi Used RIF Installer . | . . . . Robots Hacked . | . . . . Non-combat . | . . . . Combat . | . . . . Robot Hacks Applied . | . . . . Relay Couplers Released . | . . . . Fabnet Peak Effective % . | . . . . Robots Rewired . | . . . . Allies Hacked . | . . . . Hacks Repelled . | . . . . Allies | -11 -10 -10 -10 -------- Run | Jun Mat Min Exi Total Allies 2 | . . 2 . Largest Group 2 | . . 2 . Highest-Rated Group 46 | . . 46 . Highest-Rated Ally 31 | . . 31 . Total Orders . | . . . . Ally Attacks 13 | . . 13 . Total Damage 149 | . . 149 . Kills 3 | . . 3 . Allies Corrupted . | . . . . Allies Melted . | . . . . Intel | -11 -10 -10 -10 ------- Run | Jun Mat Min Exi Robot Analysis Total 1 | . 1 . . Derelict Logs Recovered 1 | . . 1 . Drone Launches . | . . . . Drone Recoveries . | . . . . Exploration | -11 -10 -10 -10 ------------- Run | Jun Mat Min Exi Turns Passed 1962 | 73 190 1151 548 Spaces Moved 1203 | 40 108 661 394 Core 3 | 2 . . 1 Treads 978 | 38 108 661 171 Legs . | . . . . Wheels 222 | . . . 222 Hover . | . . . . Flight . | . . . . Fastest Speed 50 | 50 160 160 110 Average Speed 150 | 154 160 160 132 Slowest Speed 350 | 160 160 160 350 Overloaded Moves . | . . . . Propulsion Burnouts . | . . . . Robots Hopped . | . . . . Cave-ins Triggered . | . . . . Exploration Rate (%) 49 | 3 25 98 70 Regions Visited 3 Branch Regions 2 Pre-discovered Areas 2 | . . 1 1 Known Exits Taken . | . . . . Unknown Exits Taken 3 | 1 1 1 . Scrap Searched 1 | . . 1 . Spaces Dug . | . . . . Terrain Destroyed . | . . . . Melee . | . . . . Projectile . | . . . . AOE . | . . . . Terrain Rammed . | . . . . Walls Destroyed . | . . . . Machines Disabled . | . . . . Actions | -11 -10 -10 -10 --------- Run | Jun Mat Min Exi Total 1296 | 48 119 713 416 Wait 16 | . . 16 . Move 1200 | 39 107 660 394 Hop . | . . . . Pick Up 15 | 2 2 8 3 Fast Attach 8 | 6 2 . . Attach 5 | . . 1 4 Detach 4 | . 2 . 2 Swap 5 | 1 . 3 1 Drop 6 | . 2 1 3 Fire 26 | . 4 22 . Melee 8 | . . . 8 Ram . | . . . . Kick . | . . . . Crush 3 | . . 2 1 Escape Stasis . | . . . . Rewire . | . . . . Trap . | . . . . Miscellaneous . | . . . . Route ------- -11/Junkyard -10/Materials (discovered 2 exits: [Mat] / [*Min]) -10/Mines (discovered 3 exits: [*Mat x2] / *Exi) -10/Exiles (discovered 2 exits: [*Min x2]) History --------- Turn | Location | Event 25 | -11/Junkyard | Discovered new exit (range 16) 74 | -11/Junkyard | Entered Materials 201 | -10/Materials | Central database locked down 220 | -10/Materials | Discovered new exit (range 13) 220 | -10/Materials | Discovered new exit (range 21) 264 | -10/Materials | Entered Mines 303 | -10/Mines | Build established: Mutant 398 | -10/Mines | Found a hidden stash of uninstalled traps 404 | -10/Mines | Learned Materials stockpile data 670 | -10/Mines | Learned location of Storage (-7) 901 | -10/Mines | Discovered new exit (range 9) 1005 | -10/Mines | Discovered new exit (range 5) 1295 | -10/Mines | Joined a pair of Derelicts in attacking an 0b10 outpost 1407 | -10/Mines | Deemed a non-threat by the Exiles lab entrance 1407 | -10/Mines | Discovered new exit (range 5) 1415 | -10/Mines | Entered Exiles 1445 | -10/Exiles | Discovered new exit (range 15) 1463 | -10/Exiles | Met 8R-AWN 1485 | -10/Exiles | Met EX-HEX 1555 | -10/Exiles | Met EX-DEC 1584 | -10/Exiles | Learned location of Zion (-6) 1616 | -10/Exiles | Met EX-BIN 1793 | -10/Exiles | Aligned with FarCom system 1794 | -10/Exiles | Given EX-Vault access code 1822 | -10/Exiles | Opened EX-Vault 1832 | -10/Exiles | Found Longsword +1 1854 | -10/Exiles | Warned to stay clear of 0b10 Research branches 1868 | -10/Exiles | Exiles lab attacked by MAIN.C 1927 | -10/Exiles | Discovered new exit (range 10) 1934 | -10/Exiles | Attacked by the Exiles 1952 | -10/Exiles | Core integrity fell below 50% 1954 | -10/Exiles | Core integrity fell below 20% 1963 | -10/Exiles | Destroyed by DAS Turret with DAS Cannon Last Messages --------------- Prepare for evacuation. 01894_ System corrupted: Energy discharge (-39). 01903_ EXILES: Lab perimeter alert, evacuate immediately. 01927_ EXIT=FOUND 01933_ Sneak attack on EX-DEC. 01934_ EXILES: Additional hostile detected within perimeter. 01936_ EX-DEC: "Let's see what this bad boy can do..." 01936_ EX-DEC deploys DAS Turret. 01936_ Knocked back. 01941_ Mak. Power Source destroyed. 01941_ Lgt. Armor Plating destroyed. 01941_ Knocked back. 01943_ Lgt. Treads destroyed. 01943_ Wheel destroyed. 01943_ Knocked back. 01957_ Longsword +1 blasted off. 01959_ Slammed into DAS Turret. 01960_ System corrupted: Heat flow error (+198). 01961_ Lgt. Treads destroyed. 01961_ Knocked back. Map ----- +----------------------------------------------------+ | | | | | ????????????????????????????????????????????? | | ????????????????????????????????????????????? | | ????????????????????????????????????????????? | | ????????????????????????????????????????????? | | ????????????????????????????????????????????? | | ????????????????????????????????????????????? | | ????????????????????????????????????????????? | | ????????????????????????????????????????????? | | ????????????????????????????????????????????? | | ????????????????????????????????????????????? | | ????????????????????????????????????????????? | | ????????????????????????????????????????????? | | ????????????????????????????????????????????? | | ????????????????????????????????????????????? | | ????????????????????????????????????????????? | | ????????????????????????????????????????????? | | ????????????????#####???????????????????????? | | ???????????????## ##??????????????????????? | | ???????????????# #??????????????????????? | | ???????????????# < #??????????????????????? | | ???????????????#% ###????????????????????? | | ???????????????# #????????????????????? | | ???????????????# ##????????????????????? | | ???????????????## %@%#?????????????????????? | | ????????????????# % ##????????????????????? | | ????????????????##% t#????????????#######?? | | ?????????????????# #######??????#!!! "#?? | | ?????????????????# #""##?????# "#?? | | ?????????????????## #?????# "#?? | | ??????????????????##" ##???## ""#?? | | ??????????????????#"" #####" ""#?? | | ??????????????????#### ##" ""#?? | | ?????????????????????## #"" #???? | | ??????????????????????#"## #???? | | ??????????????????????####### ##??? | | ????????????????????????????### "#??? | | ??????????????????????########" ###? | | ??????????????????????# !!""""" ## | | ??????????????????????#! "###"" # | | ??????????????????????#! "#?##" | | ??????????????????????#! ##??#" | | ??????????????????????# !""""""###???#"# | | ??????????????????????##########?????#### | | ????????????????????????????????????????### | | ??????????????????????????????????????????### | | ????????????????????????????????????????????# | | ????????????????????????????????????????????? | | ????????????????????????????????????????????? | +----------------------------------------------------+ Best States ------------- Heat Dissipation 25 Energy Generation 15 Energy Capacity 170 Matter Stores 300 Matter Capacity 300 Sight Range 16 Terrain Scan Density 10 Armor Coverage 150 Core Shielding 20 Evasion (%) 40 Recoil Reduction 2 Item Schematics ----------------- None Robot Schematics ------------------ None Fabricated ------------ Nothing Alien Tech Used ----------------- None Achievements -------------- None Challenges ------------ None Game ------ Seed ScatterMatterLaser Manual? 0 Play Time 00:08:38 Cumulative 379.2 hours Start 2023.03.30 @ 20:37:05 End 2023.03.30 @ 20:43:49 Sessions 1 Manual Loads 0 Difficulty Rogue Special Mode None Game No. 468 Rogue 381 Adventurer 87 Explorer 0 Win Type - Total 18 Types 7/0/9/1/1/0/0/0/0 Lore% 87 Gallery% 91 Achievement% 73 Wizard Run 0 Options --------- ASCII 0 Keyboard 1 Movement Numpad Keybinds 0 Fullscreen 1 Font 18/SmallcapsGlow Map View 76x50 Tactical HUD 1 Map Filters NONE Filters NONE Steam 1 RUN: 5ef66718-5aef-4e5c-a71f-dd71ef916528